bitfinex-derivatives/quotes_ETHF0:USTF0_20260303
["timestamp","ask_amount","ask_price","bid_price","bid_amount"]
[1772499837730,4.38685427,2033.0,2031.9,4.73717124]
[1772499838130,0.24591,2033.4,2031.5,7.97]
[1772499838131,4.38685427,2033.2,2032.2,4.73717124]
[1772499838833,4.3927503,2033.2,2032.2,4.73717124]
[1772499840137,0.00589603,2033.2,2032.2,4.73717124]
[1772499840336,4.3927503,2033.2,2032.2,4.73717124]
[1772499840834,0.00589603,2033.2,2032.4,6.77441565]
[1772499841034,6.38812358,2033.9,2032.8,4.73717124]
[1772499841035,4.38685427,2033.9,2032.8,4.73717124]
[1772499841935,4.39101726,2033.9,2032.8,4.73717124]
[1772499842333,0.00416299,2033.9,2033.1,4.73717124]
[1772499842533,0.00416299,2033.9,2033.1,4.74205307]
[1772499843637,0.00416299,2033.9,2033.1,0.00488183]
[1772499843638,4.38685427,2033.7,2033.1,0.00488183]
[1772499843839,4.38685427,2033.7,2032.1,18.33030097]
[1772499843840,4.38685427,2033.6,2032.3,4.73717124]
[1772499844444,4.38685427,2033.6,2032.5,2.03724441]
[1772499844740,4.38685427,2033.6,2032.6,4.73717124]
[1772499846044,4.38685427,2033.6,2032.7,4.73717124]
[1772499846239,4.38685427,2033.8,2032.7,4.73717124]
[1772499846444,4.39101726,2033.9,2033.0,4.73717124]
[1772499848246,4.38685427,2033.7,2032.6,4.73717124]
[1772499852443,4.39101726,2033.9,2032.7,4.73717124]
[1772499854142,4.38685427,2033.6,2032.7,4.73717124]
[1772499857143,4.38685427,2033.6,2032.5,4.7422018]
[1772499857144,4.38685427,2033.4,2032.5,4.7422018]
[1772499857942,0.00416299,2033.9,2032.5,4.7422018]
[1772499857943,12.55080771,2033.7,2032.5,4.7422018]
[1772499858143,4.57380771,2033.7,2032.5,4.7422018]
[1772499862548,7.977,2033.8,2032.5,4.7422018]
[1772499862549,4.57380771,2033.3,2032.5,0.00503056]
[1772499862754,0.24591,2033.4,2031.9,4.37061916]
[1772499862755,4.57380771,2033.1,2031.9,4.37061916]
[1772499863151,4.57380771,2032.9,2031.9,4.37061916]
[1772499863753,4.57380771,2032.9,2031.9,4.37684713]
[1772499868852,4.57380771,2032.7,2031.9,4.37684713]
[1772499869458,4.57380771,2032.7,2031.9,0.00622797]
[1772499869856,4.57380771,2032.7,2031.9,4.37684713]
[1772499870357,4.57380771,2032.7,2031.9,0.00622797]
[1772499870856,4.57380771,2032.6,2031.9,4.37684713]
[1772499871257,4.57380771,2032.8,2031.9,4.37684713]
[1772499880966,4.57380771,2033.2,2031.9,4.37684713]
[1772499881270,4.57380771,2033.2,2032.1,4.37061916]
[1772499882167,4.57380771,2033.2,2031.9,0.00622797]
[1772499882168,4.57380771,2033.4,2032.3,4.37061916]
[1772499886975,4.57380771,2033.3,2032.3,4.37061916]
[1772499889873,4.20585571,2033.4,2032.3,4.37061916]
[1772499890078,4.20585571,2033.6,2032.3,4.37061916]
[1772499890478,4.20585571,2033.6,2032.5,4.47566974]
[1772499894381,7.943,2033.8,2032.2,6.438]
[1772499894382,4.20585571,2033.8,2032.7,4.47566974]
[1772499894582,0.00416299,2033.9,2032.9,4.47566974]
[1772499894881,4.20585571,2034.2,2033.1,4.47566974]
[1772499895188,4.20585571,2034.5,2033.3,4.47566974]
[1772499895385,4.20585571,2034.8,2033.3,4.47566974]
[1772499895685,4.20585571,2034.8,2033.5,4.47566974]
[1772499895877,4.21220043,2034.8,2033.7,4.47566974]
[1772499898993,4.20585571,2035.4,2034.3,4.47566974]
[1772499899887,4.21196542,2035.4,2034.3,4.47566974]
[1772499901089,7.925,2035.8,2033.9,6.04787]
[1772499901090,4.20585571,2035.8,2034.5,4.47566974]
[1772499902189,4.21179552,2035.8,2034.5,4.47566974]
[1772499902390,0.00593981,2035.8,2034.6,4.72142974]
[1772499902581,0.00593981,2035.8,2035.1,4.47566974]
[1772499902788,4.20585571,2036.6,2035.1,4.48198578]
[1772499903789,4.21171065,2036.6,2035.1,4.48198578]
[1772499904681,4.20585571,2036.4,2035.1,4.48198578]
[1772499904887,4.20585571,2036.2,2035.1,0.00631604]
[1772499905086,4.20585571,2036.1,2035.1,0.00631604]
[1772499905287,4.20585571,2036.1,2035.1,4.48198578]
[1772499905889,4.45143571,2036.1,2035.1,4.48198578]
[1772499907390,4.20585571,2036.5,2035.1,4.48198578]
[1772499908387,4.20585571,2036.5,2035.3,4.47566974]
[1772499909593,4.21171065,2036.6,2035.3,4.47566974]
[1772499910985,4.20585571,2036.4,2035.3,4.47566974]
[1772499915096,4.20585571,2036.2,2035.3,4.47566974]
[1772499916498,0.24558,2036.1,2035.1,4.48198578]
[1772499916695,4.20585571,2035.8,2035.1,6.04e-06]
[1772499916895,4.20585571,2035.8,2034.4,4.47566974]
[1772499917398,4.20585571,2035.6,2034.4,4.47566974]
[1772499917799,4.20585571,2035.6,2034.4,4.47918044]
[1772499917996,4.11063803,2036.1,2034.6,4.01110653]
[1772499918201,4.11063803,2036.0,2034.6,4.01110653]
[1772499919097,4.35620803,2036.2,2034.6,4.01110653]
[1772499919303,4.35620803,2036.2,2034.8,4.01110653]
[1772499920901,4.11063803,2035.9,2034.8,4.01110653]
[1772499922198,4.11063803,2036.5,2035.2,4.01110653]
[1772499922398,6.15508608,2037.1,2035.3,4.01110653]
[1772499922399,4.11649297,2036.6,2035.3,4.01110653]
[1772499922601,0.00585494,2036.6,2035.3,4.01110653]
[1772499922795,4.11649297,2036.6,2035.3,4.01110653]
[1772499923398,0.00585494,2036.6,2035.4,4.01110653]
[1772499923599,0.00585494,2036.6,2035.3,6.04369]
[1772499923600,0.00585494,2036.6,2035.5,6.28874]
[1772499923805,4.11063803,2037.7,2036.4,4.01110653]
[1772499924908,4.1162271,2037.7,2036.4,4.01674289]
[1772499925498,0.00558907,2037.7,2036.6,4.01110653]
[1772499925702,4.1162271,2037.7,2036.6,4.01110653]
[1772499928706,4.1162271,2037.7,2036.4,0.00563636]
[1772499928707,4.11063803,2037.5,2036.4,4.01674289]
[1772499929902,4.1162271,2037.7,2036.4,4.01674289]
[1772499930109,0.00558907,2037.7,2036.4,4.01674289]
[1772499930411,4.11063803,2037.6,2036.4,4.01674289]
[1772499930610,4.11063803,2037.6,2036.5,4.01110653]
[1772499934412,4.1162271,2037.7,2036.5,4.01110653]
[1772499938509,0.00558907,2037.7,2036.5,4.01110653]
[1772499938715,4.11063803,2038.1,2036.7,4.01110653]
[1772499938911,0.24527,2038.7,2036.9,4.01110653]
[1772499939116,4.11063803,2038.6,2037.1,4.01110653]
[1772499939608,4.11063803,2038.4,2037.1,4.01110653]
[1772499939806,4.11063803,2038.2,2037.1,4.01110653]
[1772499941311,4.11063803,2038.0,2036.8,4.01110653]
[1772499943009,4.11063803,2038.0,2036.7,7.08]
[1772499943010,4.11063803,2037.8,2036.4,0.00563636]
[1772499943215,4.11063803,2037.8,2036.5,4.01110653]
[1772499943812,4.11063803,2037.4,2036.4,4.01674289]
[1772499946914,4.11063803,2037.2,2036.4,0.00563636]
[1772499947318,4.11063803,2037.2,2036.4,4.01674289]
[1772499949220,3.95697194,2037.4,2036.4,4.01674289]
[1772499952621,4.20240194,2037.4,2036.4,0.00563636]
[1772499952829,3.95697194,2037.2,2036.4,0.00563636]
[1772499953220,3.95697194,2037.2,2036.4,4.19677603]
[1772499956028,3.95697194,2037.0,2036.1,4.19113967]
[1772499957126,3.95697194,2037.0,2036.1,4.19557356]
[1772499959322,3.95697194,2036.8,2036.1,0.00443389]
[1772499959524,3.96213012,2036.8,2036.1,0.00443389]
[1772499959922,0.24551,2036.7,2035.7,4.19113967]
[1772499960123,3.95697194,2036.6,2035.7,4.19113967]
[1772499961030,3.95697194,2036.6,2035.7,4.19706344]
[1772499961332,3.96213012,2036.8,2035.7,4.19706344]
[1772499961824,4.20763012,2036.8,2035.7,4.19706344]
[1772499965134,4.20252194,2036.4,2035.1,4.19113967]
[1772499965334,3.95697194,2036.2,2035.1,4.19113967]
[1772499965938,3.95697194,2036.2,2035.1,4.19616616]
[1772499970841,7.859,2036.3,2035.1,4.19616616]
[1772499970842,3.95697194,2036.0,2035.1,4.19616616]
[1772499976145,3.95697194,2036.5,2035.1,4.19616616]
[1772499980344,3.88365631,2036.3,2035.1,4.19616616]
[1772499981747,3.88365631,2036.3,2035.1,4.44186616]
[1772499981942,3.88365631,2036.7,2035.8,4.28059092]
[1772499984953,0.00515818,2036.8,2035.8,4.28059092]
[1772499985550,3.88881449,2036.8,2035.8,4.28059092]
[1772499994659,3.88365631,2036.6,2035.3,4.28059092]
[1772499996155,3.88365631,2036.6,2035.5,4.28059092]
[1772500001461,3.88365631,2036.4,2035.5,4.28059092]
[1772500003063,3.88365631,2036.4,2035.2,4.28059092]
[1772500004563,3.88365631,2036.2,2035.2,4.28059092]
[1772500005963,3.88365631,2036.1,2035.2,4.28059092]
[1772500007265,3.88365631,2036.1,2035.1,4.28561741]
[1772500008257,4.06979878,2036.0,2035.1,4.28561741]
[1772500008661,4.06979878,2036.2,2035.1,4.28561741]
[1772500018374,4.06979878,2036.0,2035.1,4.28561741]
[1772500021367,4.31539878,2036.0,2035.1,4.28561741]
[1772500021573,0.24564,2035.6,2034.6,4.07102059]
[1772500021767,4.06979878,2035.5,2034.6,4.07102059]
[1772500022577,4.06979878,2035.5,2034.6,4.07580491]
[1772500023271,4.06979878,2035.7,2034.6,4.32155491]
[1772500025877,7.742,2036.0,2034.6,4.32155491]
[1772500025878,4.06979878,2035.9,2034.6,4.32155491]
[1772500026076,4.06979878,2035.9,2034.8,4.31676059]
[1772500027373,4.06979878,2036.0,2034.8,4.31676059]
[1772500029979,4.06979878,2036.0,2034.8,4.07102059]
[1772500030474,4.31541878,2035.8,2034.8,4.07102059]
[1772500030675,4.31543878,2035.6,2034.6,4.07580491]
[1772500030975,4.31543878,2035.6,2034.6,0.00478432]
[1772500031381,4.06979878,2035.4,2034.6,0.00478432]
[1772500031576,4.06979878,2035.4,2034.6,4.07580491]
[1772500031771,4.06979878,2035.3,2034.6,4.07580491]
[1772500032078,4.07597539,2035.3,2034.6,4.07580491]
[1772500032275,4.06979878,2034.4,2033.4,4.07102059]
[1772500032472,4.06979878,2034.3,2033.4,4.07102059]
[1772500033280,4.06979878,2034.3,2033.4,4.07498059]
[1772500035181,4.06979878,2034.3,2032.5,4.07102059]
[1772500035182,4.06979878,2033.9,2032.5,4.07102059]
[1772500035383,4.06979878,2033.7,2032.5,4.07102059]
[1772500036278,4.07342517,2033.7,2032.5,4.07475808]
[1772500037086,4.06979878,2033.5,2032.5,4.07475808]
[1772500037286,4.07342517,2033.7,2032.5,4.07475808]
[1772500038186,0.00362639,2033.7,2032.5,4.07475808]
[1772500038385,0.00362639,2033.7,2032.7,3.94032097]
[1772500039587,3.91753113,2034.2,2032.9,3.94032097]
[1772500040092,3.91753113,2034.4,2033.1,3.94032097]
[1772500040683,3.92376559,2034.4,2033.1,3.94032097]
[1772500041285,0.00623446,2034.4,2033.3,3.94032097]
[1772500041487,0.00623446,2034.4,2033.5,3.94032097]
[1772500043383,3.92376559,2034.4,2033.5,3.94032097]
[1772500045382,0.00623446,2034.4,2033.5,3.94032097]
[1772500048091,3.92376559,2034.4,2033.5,3.94032097]
[1772500051791,2.03076672,2034.2,2033.3,3.94032097]
[1772500051992,3.91753113,2034.1,2033.3,3.94032097]
[1772500052290,3.91753113,2034.3,2033.3,3.94032097]
[1772500061002,0.25202446,2034.4,2033.3,3.94032097]
[1772500061003,3.91753113,2034.0,2033.3,3.94032097]
[1772500061302,3.91753113,2034.0,2033.0,3.94032097]
[1772500061703,3.91753113,2033.9,2033.0,3.94032097]
[1772500062397,3.91753113,2034.1,2033.0,3.94032097]
[1772500062595,3.91753113,2034.1,2033.2,3.94032097]
[1772500066703,3.91753113,2034.3,2033.3,3.94032097]
[1772500069010,3.57166743,2033.9,2033.2,3.46507052]
[1772500073506,3.57166743,2034.1,2033.3,3.46507052]
[1772500076104,0.00623446,2034.4,2033.3,3.46507052]
[1772500076300,3.57790189,2034.4,2033.5,3.46507052]
[1772500078510,0.00623446,2034.4,2033.5,3.46507052]
[1772500078710,0.00623446,2034.4,2033.5,3.71096052]
[1772500080315,3.57166743,2034.9,2033.8,3.46507052]
[1772500080513,4.09294719,2035.1,2033.8,3.46507052]
[1772500080514,9.66618857,2034.8,2033.8,3.46507052]
[1772500080708,3.57166743,2034.8,2033.8,3.46507052]
[1772500081214,0.00592743,2034.8,2034.0,5.49583724]
[1772500081414,0.00592743,2034.8,2034.1,3.46507052]
[1772500082913,3.57166743,2035.4,2034.3,3.46507052]
[1772500083214,3.57166743,2035.2,2034.3,3.46507052]
[1772500083409,3.57166743,2035.4,2034.3,3.71086052]
[1772500084007,3.57560417,2035.4,2034.3,3.71086052]
[1772500084508,3.57166743,2035.1,2034.3,3.46507052]
[1772500084903,3.57166743,2035.3,2034.3,3.46507052]
[1772500088121,3.57166743,2035.0,2034.3,3.46507052]
[1772500088620,3.57166743,2035.0,2034.0,0.00396155]
[1772500088621,3.57166743,2034.8,2034.1,3.46507052]
[1772500088920,3.57166743,2034.8,2034.0,3.46903207]
[1772500092119,3.57166743,2034.8,2033.3,0.24591]
[1772500092120,3.57166743,2034.6,2033.2,3.46507052]
[1772500092414,3.57166743,2034.3,2033.2,3.46507052]
[1772500093319,3.57166743,2034.3,2033.2,3.46957843]
[1772500095417,3.57166743,2034.5,2033.4,3.46507052]
[1772500095626,3.57166743,2034.6,2033.4,3.46507052]
[1772500096127,3.57166743,2034.6,2033.7,3.46507052]
[1772500099924,3.14112416,2035.0,2033.9,2.93993246]
[1772500103627,3.14112416,2034.8,2033.9,2.93993246]
[1772500108435,3.14112416,2035.1,2033.9,2.93993246]
[1772500108937,3.14112416,2035.1,2034.1,2.93993246]
[1772500109738,3.14112416,2035.1,2034.2,0.24581]
[1772500109937,0.00393674,2035.4,2034.3,2.93993246]
[1772500109938,3.14112416,2035.3,2034.3,2.93993246]
[1772500111238,3.1450609,2035.4,2034.3,2.93993246]
[1772500111438,0.00393674,2035.4,2034.5,2.93993246]
[1772500111631,3.1450609,2035.4,2034.5,2.93993246]
[1772500112237,0.00393674,2035.4,2034.5,2.93993246]
[1772500113233,3.1450609,2035.4,2034.5,2.93993246]
[1772500116741,0.00393674,2035.4,2034.5,2.93993246]
[1772500116932,0.24557,2036.2,2034.8,0.24574]
[1772500117138,3.14112416,2036.1,2034.9,2.93993246]
[1772500117344,3.14112416,2036.1,2035.1,2.93993246]
[1772500118039,3.14650495,2036.1,2035.1,2.94582865]
[1772500118538,0.00538079,2036.1,2035.3,2.93993246]
[1772500118835,3.14650495,2036.1,2035.3,2.93993246]
[1772500123447,3.14650495,2036.1,2035.1,0.00589619]
[1772500123448,3.14650495,2036.1,2035.1,2.94582865]
[1772500124142,0.00538079,2036.1,2035.1,3.19152865]
[1772500125441,3.14112416,2037.0,2035.6,2.93993246]
[1772500125646,3.14112416,2037.0,2035.8,2.93993246]
[1772500126548,3.14618586,2037.0,2035.8,2.93993246]
[1772500126843,3.14112416,2036.9,2035.8,2.93993246]
[1772500127044,3.14112416,2036.9,2035.2,0.24568]
[1772500127045,3.14112416,2036.7,2035.4,2.93993246]
[1772500130752,3.14112416,2036.7,2035.6,2.52482078]
[1772500132252,2.72309453,2036.5,2035.6,2.52482078]
[1772500132755,2.72309453,2036.5,2035.2,2.52482078]
[1772500139155,0.24554,2036.4,2035.2,2.52482078]
[1772500139362,2.72309453,2036.3,2035.2,2.52482078]
[1772500141059,2.72309453,2036.1,2035.1,2.53071697]
[1772500141259,2.72309453,2035.7,2034.5,2.52482078]
[1772500141858,2.72309453,2035.6,2034.5,2.52482078]
[1772500142353,2.72309453,2035.6,2034.5,2.52907637]
[1772500142857,2.72309453,2035.4,2034.5,0.00425559]
[1772500143062,2.72775533,2035.4,2034.5,0.00425559]
[1772500143859,2.72309453,2035.2,2034.5,0.00425559]
[1772500145160,2.72309453,2035.0,2034.1,2.52482078]
[1772500145363,2.72309453,2035.0,2033.6,2.52482078]
[1772500145761,2.72309453,2034.8,2033.6,2.52482078]
[1772500146162,2.72309453,2034.8,2033.6,2.53111998]
[1772500148860,0.0046608,2035.4,2034.1,2.52482078]
[1772500148861,2.72309453,2035.3,2034.1,2.52482078]
[1772500160570,2.72309453,2035.3,2034.2,2.23542382]
[1772500161876,2.32165853,2034.9,2034.2,2.23542382]
[1772500162773,2.32165853,2035.2,2034.2,2.23542382]
[1772500165576,2.32631933,2035.4,2034.5,2.23542382]
[1772500166673,2.32165853,2035.3,2034.2,2.23542382]
[1772500167674,2.56733853,2035.3,2034.2,2.23542382]
[1772500171179,5.94847759,2035.2,2034.2,2.23542382]
[1772500171480,2.32165853,2035.1,2034.2,2.23542382]
[1772500171683,2.32165853,2035.0,2034.2,2.23542382]
[1772500173481,2.32165853,2035.3,2034.2,2.23542382]
[1772500173690,2.32165853,2035.3,2034.5,2.23542382]
[1772500177195,0.0046608,2035.4,2034.7,2.23542382]
[1772500177595,2.32165853,2035.6,2034.7,2.23542382]
[1772500178595,0.00564478,2035.6,2034.8,2.23542382]
[1772500178891,2.32165853,2035.9,2035.1,2.23542382]
[1772500179899,2.32627388,2035.9,2035.1,2.24076457]
[1772500184988,2.32165853,2036.1,2035.3,2.23542382]
[1772500186091,2.32619765,2036.1,2035.3,2.23542382]
[1772500188399,2.32619765,2036.1,2035.4,1.88600721]
[1772500188598,0.00453912,2036.1,2035.4,1.88600721]
[1772500189299,1.82119787,2036.3,2035.4,1.88600721]
[1772500189600,1.82119787,2036.7,2035.7,1.88600721]
[1772500190199,1.82578947,2036.7,2035.5,2.13165721]
[1772500192005,1.82119787,2036.4,2035.5,1.88600721]
[1772500192200,1.82119787,2036.1,2035.2,1.88600721]
[1772500197715,1.82119787,2036.1,2035.1,1.89134796]
[1772500198107,1.82119787,2036.4,2035.5,1.88600721]
[1772500201519,1.82119787,2036.6,2035.7,1.88600721]
[1772500202010,0.0045916,2036.7,2035.1,6.04962075]
[1772500202011,1.82119787,2036.3,2035.2,1.88600721]
[1772500217924,1.82119787,2036.3,2035.3,1.62165315]
[1772500222215,1.61220761,2036.1,2035.2,1.62165315]
[1772500222427,0.24557,2036.2,2035.1,0.00534075]
[1772500222428,1.61220761,2035.9,2035.1,1.6269939]
[1772500224621,1.61220761,2036.2,2035.3,1.62165315]
[1772500232023,1.61220761,2036.3,2035.5,1.62165315]
[1772500232329,1.61679921,2036.7,2035.7,1.62165315]
[1772500232527,1.61679921,2036.7,2035.9,1.62165315]
[1772500234825,1.61220761,2036.5,2035.4,1.62165315]
[1772500235637,1.61220761,2036.5,2035.6,1.62165315]
[1772500236432,1.61220761,2036.5,2035.7,1.62165315]
[1772500236829,1.61220761,2036.6,2035.7,1.62165315]
[1772500238434,1.61220761,2036.6,2035.9,1.62165315]
[1772500239731,1.61220761,2036.6,2035.4,6.04343]
[1772500239732,1.61220761,2036.6,2035.4,1.62165315]
[1772500240035,1.61220761,2036.6,2035.5,1.62165315]
[1772500240837,1.61220761,2036.6,2035.7,1.62165315]
[1772500241036,1.61679921,2036.7,2035.7,1.62165315]
[1772500243337,1.61679921,2036.7,2035.9,1.62165315]
[1772500243542,0.0045916,2036.7,2036.0,1.62165315]
[1772500245546,1.61220761,2037.4,2036.2,1.62165315]
[1772500245742,1.61220761,2037.4,2036.3,1.62165315]
[1772500246644,1.61594301,2037.4,2036.3,1.62165315]
[1772500246940,1.61594301,2037.4,2036.5,1.62165315]
[1772500254047,1.37302733,2037.7,2036.7,1.39680232]
[1772500255052,1.37841815,2037.7,2036.9,1.39680232]
[1772500255244,0.00539082,2037.7,2036.9,1.39680232]
[1772500257046,1.37841815,2037.7,2036.9,1.39680232]
[1772500262851,1.37302733,2038.3,2037.5,1.39680232]
[1772500263249,0.62438067,2038.9,2037.5,1.39680232]
[1772500263250,1.37302733,2038.8,2037.6,1.64220232]
[1772500263950,1.37902929,2038.8,2037.6,1.64220232]
[1772500265347,0.00600196,2038.8,2037.9,1.39680232]
[1772500265552,0.00600196,2038.8,2038.0,1.39680232]
[1772500265948,4.35994436,2039.8,2038.0,1.64215232]
[1772500265949,1.37302733,2039.1,2038.0,1.64215232]
[1772500266156,1.37302733,2040.0,2038.5,1.39680232]
[1772500266355,1.37302733,2040.0,2038.6,1.39680232]
[1772500267050,1.37776113,2040.0,2038.6,1.40291428]
[1772500268046,1.37302733,2039.8,2038.6,1.40291428]
[1772500268252,1.37302733,2039.8,2038.6,0.00611196]
[1772500268449,0.24512,2039.9,2038.2,0.24533]
[1772500268450,1.37302733,2039.6,2038.3,1.39680232]
[1772500268649,1.37302733,2039.4,2038.3,1.39680232]
[1772500268950,1.37302733,2039.3,2038.1,1.39680232]
[1772500269756,1.37302733,2039.3,2038.1,1.40262047]
[1772500274860,1.37302733,2039.3,2038.2,1.39680232]
[1772500276055,1.37302733,2039.3,2038.4,1.39680232]
[1772500276364,1.37302733,2039.9,2038.4,1.39680232]
[1772500277857,1.10218082,2039.8,2038.4,1.39680232]
[1772500279364,3.70538151,2040.9,2040.0,1.11204479]
[1772500279557,1.10218082,2041.3,2040.1,1.35714479]
[1772500279956,1.10218082,2041.3,2040.0,1.11204479]
[1772500280159,1.10218082,2041.1,2040.0,1.11204479]
[1772500280367,1.10613522,2041.1,2040.0,1.11705172]
[1772500280764,1.10218082,2040.9,2040.0,1.11705172]
[1772500281664,3.12020351,2040.9,2040.0,0.00500693]
[1772500281865,7.231,2041.0,2039.3,1.11204479]
[1772500281866,1.10218082,2040.2,2039.3,1.11204479]
[1772500282672,1.10218082,2040.2,2039.0,1.11204479]
[1772500282971,1.10218082,2040.1,2039.0,1.11620685]
[1772500289377,1.10218082,2040.0,2039.0,1.11620685]
[1772500289975,1.10218082,2040.0,2039.0,0.00416206]
[1772500290884,1.10218082,2039.7,2039.0,0.00416206]
[1772500291288,1.10218082,2039.7,2038.3,2.26332269]
[1772500291289,1.10218082,2039.6,2038.4,1.11204479]
[1772500291584,1.10218082,2039.4,2038.4,1.11204479]
[1772500292384,1.10753719,2039.4,2038.4,1.11580451]
[1772500292586,1.10218082,2039.3,2038.4,1.11580451]
[1772500294285,1.10218082,2039.2,2038.4,1.11580451]
[1772500295590,0.00535637,2039.4,2038.9,1.11204479]
[1772500296885,1.10753719,2039.4,2038.7,1.35731479]
[1772500297291,0.00535637,2039.4,2038.7,1.35731479]
[1772500298087,1.10753719,2039.4,2038.7,1.35731479]
[1772500299996,1.10218082,2039.3,2038.4,0.00375972]
[1772500300887,1.10218082,2039.3,2038.4,1.11580451]
[1772500303185,1.10218082,2039.3,2038.6,1.11204479]
[1772500304494,1.10218082,2039.7,2039.1,1.11204479]
[1772500305197,1.10218082,2039.7,2038.6,1.11204479]
[1772500305589,1.10218082,2039.5,2038.6,1.11204479]
[1772500313095,1.10218082,2039.5,2038.4,0.90859352]
[1772500313992,7.162,2039.6,2038.4,0.00375972]
[1772500313993,0.92542661,2039.3,2038.4,0.00375972]
[1772500314196,8.51406343,2039.4,2037.7,0.24538]
[1772500314197,0.92542661,2039.0,2038.0,0.9048338]
[1772500314698,0.92542661,2038.8,2038.0,0.9048338]
[1772500315097,0.92542661,2038.8,2038.0,0.90903306]
[1772500315498,0.92542661,2039.0,2038.2,0.9048338]
[1772500317498,0.92542661,2039.2,2038.2,0.9048338]
[1772500319695,0.92542661,2039.0,2038.0,0.90903306]
[1772500320797,0.92542661,2038.9,2038.0,0.90903306]
[1772500320998,0.92542661,2038.8,2038.0,0.90903306]
[1772500321399,0.92542661,2038.8,2038.0,0.00419926]
[1772500321702,0.92542661,2038.6,2038.0,0.90903306]
[1772500322700,0.92542661,2038.9,2038.0,0.90903306]
[1772500322900,0.92542661,2038.7,2038.0,0.90903306]
[1772500323402,0.92542661,2038.9,2038.2,0.9048338]
[1772500325008,0.92542661,2039.4,2038.2,0.9048338]
[1772500325214,0.92542661,2039.2,2038.5,0.9048338]
[1772500326501,0.92542661,2039.4,2038.6,2.01802269]
[1772500326811,0.92542661,2039.5,2038.7,0.9048338]
[1772500329711,0.92542661,2039.5,2038.4,0.2453]
[1772500329712,0.92542661,2039.5,2038.4,0.9048338]
[1772500333213,0.92542661,2039.5,2038.3,0.24531]
[1772500333214,8.02842661,2039.4,2038.6,0.9048338]
[1772500333611,2.26314269,2040.0,2039.4,0.9048338]
[1772500333612,0.92542661,2040.0,2039.4,0.9048338]
[1772500334314,0.92542661,2040.0,2039.1,0.9048338]
[1772500334615,0.93043148,2040.0,2039.1,0.9048338]
[1772500335316,0.92542661,2039.9,2039.1,0.9048338]
[1772500337017,0.92542661,2039.8,2039.1,0.9048338]
[1772500343121,0.00500487,2040.0,2039.1,1.1500438]
[1772500343319,0.76714911,2040.4,2039.4,0.73926088]
[1772500343821,7.101,2040.6,2039.6,0.73926088]
[1772500343822,0.76714911,2040.6,2039.6,0.73926088]
[1772500344619,0.76714911,2040.6,2039.6,0.74521553]
[1772500344824,0.77063445,2040.6,2039.6,0.74521553]
[1772500346422,0.76714911,2040.5,2039.3,0.73926088]
[1772500347626,0.76714911,2040.5,2039.3,0.74293948]
[1772500348229,0.76714911,2040.5,2039.5,0.73926088]
[1772500350124,0.76714911,2040.5,2039.6,0.24516]
[1772500350326,0.00348534,2040.6,2039.9,0.73926088]
[1772500350530,0.76714911,2041.0,2039.9,0.73926088]
[1772500351531,0.77323069,2041.0,2039.9,0.73926088]
[1772500352934,0.76714911,2040.8,2039.9,0.73926088]
[1772500356439,0.77323069,2041.0,2039.9,0.73926088]
[1772500358438,0.77323069,2041.0,2040.1,0.73926088]
[1772500358740,0.76714911,2041.8,2040.6,0.73926088]
[1772500359032,0.76714911,2042.3,2041.1,0.73926088]
[1772500359235,0.76714911,2042.1,2041.1,0.73926088]
[1772500359540,0.76714911,2042.0,2040.7,0.73926088]
[1772500359740,0.7729626,2042.0,2040.7,0.74323913]
[1772500360230,7.099,2041.9,2040.7,0.74323913]
[1772500360434,0.76714911,2041.7,2040.7,0.74323913]
[1772500360735,0.76714911,2041.6,2040.7,0.00397825]
[1772500362939,0.76714911,2041.4,2040.7,0.00397825]
[1772500363138,0.76714911,2041.4,2040.7,0.74323913]
[1772500363341,0.76714911,2041.3,2040.7,0.74323913]
[1772500363940,0.76714911,2041.3,2039.9,0.73926088]
[1772500364737,0.76714911,2041.2,2039.9,0.73926088]
[1772500365037,0.76714911,2041.2,2039.9,0.7441418]
[1772500365238,0.76714911,2040.9,2039.9,0.7441418]
[1772500366134,7.85614911,2041.1,2039.9,0.7441418]
[1772500366338,0.76714911,2041.1,2039.9,0.7441418]
[1772500369337,0.63319402,2040.9,2039.9,0.7441418]
[1772500369543,0.63319402,2040.8,2039.9,0.7441418]
[1772500371147,0.63319402,2041.0,2039.9,0.7441418]
[1772500371647,0.63319402,2040.9,2039.9,0.7441418]
[1772500377947,0.63319402,2040.9,2039.9,0.9892618]
[1772500378154,0.63319402,2041.2,2040.0,0.65161148]
[1772500378353,0.63319402,2041.1,2040.0,0.65161148]
[1772500378647,5.69007344,2041.2,2040.1,0.2451]
[1772500378851,0.63319402,2041.3,2040.2,0.65161148]
[1772500379150,0.63319402,2041.3,2040.4,0.65161148]
[1772500379345,0.63319402,2041.5,2040.4,0.65161148]
[1772500379546,0.63319402,2041.4,2040.4,0.65161148]
[1772500381456,0.63319402,2041.2,2040.4,0.65161148]
[1772500381750,0.63319402,2041.2,2039.9,0.00488092]
[1772500381751,0.63319402,2041.2,2040.2,0.65161148]
[1772500382052,0.63319402,2041.1,2040.2,0.65161148]
[1772500382251,0.63319402,2040.9,2040.0,0.65161148]
[1772500382847,0.63319402,2040.7,2039.9,0.00488092]
[1772500383049,0.63319402,2040.5,2039.9,0.00488092]
[1772500383351,0.63319402,2040.5,2039.5,0.65161148]
[1772500383352,0.6391964,2040.5,2039.5,0.65161148]
[1772500384352,0.63319402,2040.3,2039.5,0.65161148]
[1772500384550,0.63319402,2040.3,2039.5,0.65510982]
[1772500384848,0.63319402,2040.2,2039.5,0.65510982]
[1772500386055,0.63319402,2040.2,2039.5,0.00349834]
[1772500387355,7.045,2040.1,2039.5,0.00349834]
[1772500387550,0.63319402,2040.0,2039.5,0.65510982]
[1772500387748,0.63319402,2040.0,2039.5,0.00349834]
[1772500387953,0.63319402,2040.0,2039.3,0.65161148]
[1772500388450,0.63319402,2040.0,2038.8,0.24525]
[1772500388757,0.63319402,2040.0,2038.9,0.65161148]
[1772500388958,0.63319402,2040.0,2038.9,0.6567701]
[1772500389949,0.63319402,2039.8,2038.9,0.6567701]
[1772500391458,0.63319402,2039.9,2038.9,0.6567701]
[1772500392764,0.63319402,2040.1,2038.9,0.6567701]
[1772500396262,0.63319402,2039.9,2038.9,0.6567701]
[1772500397859,0.58264831,2039.7,2038.5,0.54947563]
[1772500398361,0.58264831,2039.5,2038.5,0.54947563]
[1772500398953,0.58264831,2039.5,2038.5,0.55325399]
[1772500399153,0.58264831,2039.4,2038.5,0.55325399]
[1772500399865,0.58264831,2039.4,2038.5,0.00377836]
[1772500400961,0.58264831,2039.3,2038.5,0.00377836]
[1772500401267,0.58264831,2039.1,2038.5,0.55325399]
[1772500401463,0.58264831,2039.1,2038.5,0.00377836]
[1772500403563,0.58264831,2039.1,2038.3,0.54947563]
[1772500404460,0.58264831,2039.1,2038.3,0.55577655]
[1772500405064,0.58264831,2039.1,2038.3,0.00630092]
[1772500405861,0.58264831,2039.1,2038.0,0.54947563]
[1772500406166,0.58264831,2038.9,2038.0,0.54947563]
[1772500406563,6.34692147,2040.1,2037.7,0.24538]
[1772500406564,0.58264831,2039.2,2038.5,0.54947563]
[1772500406756,0.00534115,2039.2,2038.8,0.54947563]
[1772500407162,7.011,2039.6,2038.8,0.54947563]